fUSD/lending_fUSD_20250217
["ID","MTS","AMOUNT","RATE_DAILY","PERIOD"]
[353314161,1739753448233,-241.74,0.00011287,2]
[353314162,1739753448243,-500.0,0.00011287,2]
[353314163,1739753448253,-500.0,0.00011287,2]
[353314164,1739753448262,-230.5,0.00011287,2]
[353314165,1739753448272,-310.98167349,0.00011326,2]
[353314166,1739753448282,-432.18510209,0.00011368,2]
[353314167,1739753448292,-500.0,0.00011368,2]
[353314168,1739753448302,-500.0,0.00011368,2]
[353314169,1739753448312,-500.0,0.00011368,2]
[353314170,1739753448321,-500.0,0.00011368,2]
[353314171,1739753448331,-500.0,0.00011368,2]
[353314172,1739753448342,-607.55097917,0.00011368,2]
[353314173,1739753448353,-500.0,0.00011368,2]
[353314174,1739753448361,-627.28684898,0.00011368,2]
[353314175,1739753448371,-500.0,0.00011368,2]
[353314176,1739753448381,-351.164815,0.00011368,2]
[353314177,1739753448390,-440.081191,0.00011368,2]
[353314178,1739753448400,-500.0,0.00011368,2]
[353314179,1739753448410,-500.0,0.00011368,2]
[353314180,1739753448419,-500.0,0.00011368,2]
[353314181,1739753448429,-500.0,0.00011368,2]
[353314182,1739753448439,-500.0,0.00011368,2]
[353314183,1739753448450,-500.0,0.00011368,2]
[353314184,1739753448460,-500.0,0.00011368,2]
[353314185,1739753448469,-500.0,0.00011368,2]
[353314186,1739753448479,-500.0,0.00011368,2]
[353314187,1739753448489,-500.0,0.00011368,2]
[353314188,1739753448499,-500.0,0.00011368,2]
[353314189,1739753448509,-500.0,0.00011368,2]
[353314190,1739753448518,-500.0,0.00011368,2]
[353314191,1739753448528,-500.0,0.00011368,2]
[353314192,1739753448540,-500.0,0.00011368,2]
[353314193,1739753448550,-729.98,0.00011368,2]
[353314194,1739753448560,-500.0,0.00011368,2]
[353314195,1739753448570,-500.0,0.00011368,2]
[353314196,1739753448581,-500.0,0.00011368,2]
[353314197,1739753448592,-500.0,0.00011368,2]
[353314198,1739753448601,-500.0,0.00011368,2]
[353314199,1739753448612,-592.69,0.00011368,2]
[353314200,1739753448622,-500.0,0.00011368,2]
[353314201,1739753448632,-649.93,0.00011368,2]
[353314202,1739753448642,-500.0,0.00011368,2]
[353314203,1739753448652,-500.0,0.00011368,2]
[353314204,1739753448662,-500.0,0.00011368,2]
[353314205,1739753448673,-500.0,0.00011368,2]
[353314206,1739753448683,-500.0,0.00011368,2]
[353314208,1739753448861,-500.0,0.00011368,2]
[353314209,1739753448872,-681.43,0.00011368,2]
[353314210,1739753448882,-500.0,0.00011368,2]
[353314211,1739753448893,-500.0,0.00011368,2]
[353314212,1739753448903,-551.5,0.00011368,2]
[353314213,1739753448913,-500.0,0.00011368,2]
[353314214,1739753448922,-500.0,0.00011368,2]
[353314215,1739753448932,-500.0,0.00011368,2]
[353314216,1739753448942,-500.0,0.00011368,2]
[353314217,1739753448952,-500.0,0.00011368,2]
[353314218,1739753448961,-500.0,0.00011368,2]
[353314219,1739753448971,-500.0,0.00011368,2]
[353314220,1739753448982,-500.0,0.00011368,2]
[353314221,1739753448991,-500.0,0.00011368,2]
[353314222,1739753449002,-500.0,0.00011368,2]
[353314223,1739753449012,-500.0,0.00011368,2]
[353314224,1739753449021,-500.0,0.00011368,2]
[353314225,1739753449032,-592.86,0.00011368,2]
[353314226,1739753449042,-500.0,0.00011368,2]
[353314227,1739753449053,-500.0,0.00011368,2]
[353314228,1739753449064,-173.92,0.00011368,2]
[353314229,1739753449075,-891.61,0.00011368,2]
[353314230,1739753449084,-500.0,0.00011368,2]
[353314231,1739753449094,-500.0,0.00011368,2]
[353314232,1739753449104,-500.0,0.00011368,2]
[353314233,1739753449114,-500.0,0.00011368,2]
[353314234,1739753449124,-500.0,0.00011368,2]
[353314235,1739753449134,-500.0,0.00011368,2]
[353314236,1739753449145,-500.0,0.00011368,2]
[353314237,1739753449155,-500.0,0.00011368,2]
[353314238,1739753449165,-500.0,0.00011368,2]
[353314239,1739753449175,-500.0,0.00011368,2]
[353314240,1739753449186,-500.0,0.00011368,2]
[353314241,1739753449197,-46.81816837,0.00011368,2]
[353314242,1739753733547,3319.7998,8.836e-05,2]
[353314243,1739753735184,-1489.5985,8.851e-05,2]
[353314244,1739753735209,-263.9132775,8.912e-05,2]
[353314245,1739753735234,-150.0,8.912e-05,2]
[353314246,1739753735258,-200.0,8.912e-05,2]
[353314247,1739753735282,-396.4882225,8.973e-05,2]
[353314248,1739753778918,20000.0,8.836e-05,2]
[353314249,1739753778946,48699.4317,8.836e-05,2]
[353314250,1739753790167,-14068.5596,8.836e-05,2]
[353314251,1739753886685,20000.0,6.771e-05,7]
[353314252,1739753886709,3395.89264994,6.771e-05,7]
[353314253,1739753886730,10000.0,6.771e-05,7]
[353314254,1739753886750,10000.0,6.771e-05,7]
[353314255,1739753886770,10000.0,6.771e-05,7]
[353314256,1739753886790,10000.0,6.771e-05,7]
[353314257,1739753886810,10000.0,6.771e-05,7]
[353314258,1739753886831,10000.0,6.771e-05,7]
[353314259,1739753886853,10000.0,6.771e-05,7]
[353314260,1739753886875,10000.0,6.771e-05,7]
[353314261,1739753886895,10000.0,6.771e-05,7]
[353314262,1739753886915,2934.37227506,6.771e-05,7]
[353314263,1739753888768,7065.62772494,6.771e-05,7]
[353314264,1739753888790,10000.0,6.771e-05,7]
[353314265,1739753888811,10000.0,6.771e-05,7]
[353314266,1739753888834,10000.0,6.771e-05,7]
[353314267,1739753888855,10000.0,6.771e-05,7]
[353314268,1739753888876,10000.0,6.771e-05,7]
[353314269,1739753888896,10000.0,6.771e-05,7]
[353314270,1739753888916,10000.0,6.771e-05,7]
[353314271,1739753888936,10000.0,6.771e-05,7]
[353314272,1739753888958,10000.0,6.771e-05,7]
[353314273,1739753888980,10000.0,6.771e-05,7]
[353314274,1739753889005,10000.0,6.771e-05,7]
[353314275,1739753889025,10000.0,6.771e-05,7]
[353314276,1739753889047,10000.0,6.771e-05,7]
[353314277,1739753889069,10000.0,6.771e-05,7]
[353314278,1739753889089,2423.20117506,6.771e-05,7]
[353314279,1739753901126,-2500.0,8.851e-05,2]
[353314280,1739753902632,2566.4922,8.256e-05,2]
[353314285,1739754031276,-810.0,8.836e-05,2]
[353314286,1739754044469,1710.5489,8.699e-05,2]
[353314287,1739754109499,1087.68,8.219e-05,2]
[353314288,1739754146614,1220.8693,8.699e-05,2]
[353314308,1739754551076,1400000.0,0.00020122,120]
[353314335,1739754632121,-90.3827775,8.973e-05,2]
[353314336,1739754632130,-150.0,9.066e-05,2]
[353314337,1739754632140,-7839.42772,9.431e-05,2]
[353314338,1739754632149,-1000.0,9.479e-05,2]
[353314340,1739754632159,-300.0,9.484e-05,2]
[353314342,1739754632168,-1369.71806122,9.485e-05,2]
[353314344,1739754632180,-630.28193878,9.485e-05,2]
[353314345,1739754632188,-343.44306122,9.548e-05,2]
[353314346,1739754632201,-496.83693878,9.548e-05,2]
[353314347,1739754632210,-46.08306122,9.575e-05,2]
[353314348,1739754632221,-129.85912378,9.575e-05,2]
[353314349,1739754632230,-350.07087622,9.575e-05,2]
[353314350,1739754632242,-1149.92912378,9.575e-05,2]
[353314351,1739754632251,-323.06363909,9.605e-05,2]
[353314352,1739754632270,-176.93636091,9.605e-05,2]
[353314353,1739754632281,-708.0,9.717e-05,2]
[353314354,1739754632291,-244.85647786,9.717e-05,2]
[353314355,1739754632303,-5805.21352214,9.717e-05,2]
[353314356,1739754632312,-200.0,9.736e-05,2]
[353314357,1739754632322,-200.0,9.743e-05,2]
[353314358,1739754632331,-250.0,9.795e-05,2]
[353314359,1739754632340,-150.0,9.87e-05,2]
[353314360,1739754632349,-150.0,9.87e-05,2]
[353314361,1739754632360,-550.0,0.0001,2]
[353314362,1739754632369,-167.07,0.00010137,2]
[353314363,1739754632378,-175.94218498,0.00010248,2]
[353314364,1739754632387,-150.53,0.00010425,2]
[353314365,1739754632396,-150.53,0.00010429,2]
[353314366,1739754632405,-150.53,0.00010433,2]
[353314367,1739754632414,-150.53,0.00010437,2]
[353314368,1739754632423,-150.53,0.0001044,2]
[353314369,1739754632431,-150.53,0.00010444,2]
[353314370,1739754632440,-166.1,0.00010448,2]
[353314371,1739754632450,-150.53,0.00010448,2]
[353314372,1739754632459,-150.0,0.00010451,2]
[353314373,1739754632468,-150.53,0.00010451,2]
[353314374,1739754632477,-1087.68,0.00010454,2]
[353314375,1739754632486,-150.53,0.00010455,2]
[353314376,1739754632496,-150.53,0.00010459,2]
[353314377,1739754632504,-150.53,0.00010463,2]
[353314378,1739754632513,-150.53,0.00010466,2]
[353314379,1739754632522,-150.53,0.0001047,2]
[353314380,1739754632531,-150.53,0.00010474,2]
[353314381,1739754632540,-150.53,0.00010478,2]
[353314383,1739754632550,-1000.0,0.00010664,2]
[353314385,1739754632558,-840.28,0.00010742,2]
[353314386,1739754632567,-175.94218498,0.00011021,2]
[353314387,1739754632576,-150.0,0.00011096,2]
[353314388,1739754632586,-150.0,0.00011096,2]
[353314389,1739754632595,-150.0,0.00011096,2]
[353314390,1739754632605,-150.00000001,0.00011096,2]
[353314391,1739754632615,-150.0,0.00011096,2]
[353314392,1739754632626,-3341.7883585,0.00011099,2]
[353314393,1739754632637,-1356.6134905,0.00011099,2]
[353314394,1739754632647,-500.0,0.00011121,2]
[353314396,1739754632656,-500.0,0.00011121,2]
[353314398,1739754632666,-209.6,0.00011121,2]
[353314399,1739754632675,-500.0,0.00011121,2]
[353314401,1739754632684,-150.45,0.00011121,2]
[353314403,1739754632693,-500.0,0.00011121,2]
[353314405,1739754632703,-500.0,0.00011121,2]
[353314407,1739754632712,-500.0,0.00011121,2]
[353314409,1739754632721,-500.0,0.00011121,2]
[353314411,1739754632730,-500.0,0.00011121,2]
[353314413,1739754632739,-500.0,0.00011121,2]
[353314414,1739754632749,-500.0,0.00011121,2]
[353314416,1739754632758,-500.0,0.00011121,2]
[353314418,1739754632767,-500.0,0.00011121,2]
[353314420,1739754632776,-500.0,0.00011121,2]
[353314422,1739754632785,-500.0,0.00011121,2]
[353314424,1739754632794,-503.18359733,0.00011121,2]
[353314426,1739754632804,-500.0,0.00011121,2]
[353314427,1739754632814,-558.42,0.00011121,2]
[353314428,1739754632823,-500.0,0.00011121,2]
[353314429,1739754632832,-500.0,0.00011121,2]
[353314430,1739754632841,-500.0,0.00011121,2]
[353314431,1739754632850,-500.0,0.00011121,2]
[353314432,1739754632859,-500.0,0.00011121,2]
[353314433,1739754632868,-500.0,0.00011121,2]
[353314434,1739754632877,-500.0,0.00011121,2]
[353314435,1739754632886,-345.60949126,0.00011121,2]
[353314436,1739754632895,-500.0,0.00011121,2]
[353314437,1739754632904,-500.0,0.00011121,2]
[353314438,1739754632913,-500.0,0.00011121,2]
[353314439,1739754632923,-500.0,0.00011121,2]
[353314440,1739754632932,-500.0,0.00011121,2]
[353314441,1739754632941,-500.0,0.00011121,2]
[353314442,1739754632951,-500.0,0.00011121,2]
[353314443,1739754632961,-500.0,0.00011121,2]
[353314444,1739754632971,-500.0,0.00011121,2]
[353314445,1739754632980,-134.90622091,0.00011121,2]
[353314446,1739754632993,-365.09377909,0.00011121,2]
[353314447,1739754633002,-500.0,0.00011121,2]
[353314448,1739754633011,-500.0,0.00011121,2]
[353314449,1739754633021,-500.0,0.00011121,2]
[353314450,1739754633030,-49.65899539,0.00011121,2]
[353314451,1739754633042,-450.34100461,0.00011121,2]
[353314452,1739754633052,-500.0,0.00011121,2]
[353314453,1739754633062,-500.0,0.00011121,2]
[353314454,1739754633071,-500.0,0.00011121,2]
[353314455,1739754633080,-500.0,0.00011121,2]
[353314456,1739754633089,-500.0,0.00011121,2]
[353314457,1739754633098,-500.0,0.00011121,2]
[353314458,1739754633109,-500.0,0.00011121,2]
[353314459,1739754633118,-500.0,0.00011121,2]
[353314460,1739754633128,-500.0,0.00011121,2]
[353314461,1739754633138,-500.0,0.00011121,2]
[353314462,1739754633148,-500.0,0.00011121,2]
[353314463,1739754633157,-500.0,0.00011121,2]
[353314464,1739754633167,-500.0,0.00011121,2]
[353314465,1739754633177,-500.0,0.00011121,2]
[353314466,1739754633187,-500.0,0.00011121,2]
[353314467,1739754633197,-500.0,0.00011121,2]
[353314468,1739754633206,-500.0,0.00011121,2]
[353314469,1739754633216,-500.0,0.00011121,2]
[353314470,1739754633225,-325.23685188,0.00011121,2]
[353314471,1739754633234,-500.0,0.00011121,2]
[353314472,1739754633244,-500.0,0.00011121,2]
[353314473,1739754633253,-290.49164099,0.00011121,2]
[353314474,1739754633262,-503.82641742,0.00011121,2]
[353314475,1739754633272,-500.0,0.00011121,2]
[353314476,1739754633285,-500.0,0.00011121,2]
[353314477,1739754633294,-500.0,0.00011121,2]
[353314478,1739754633304,-500.0,0.00011121,2]
[353314479,1739754633313,-500.0,0.00011121,2]
[353314480,1739754633325,-487.57288583,0.00011121,2]
[353314481,1739754633334,-500.0,0.00011121,2]
[353314482,1739754633344,-500.0,0.00011121,2]
[353314483,1739754633354,-500.0,0.00011121,2]
[353314484,1739754633363,-286.66974938,0.00011121,2]
[353314485,1739754633373,-500.0,0.00011121,2]
[353314486,1739754633382,-500.0,0.00011121,2]
[353314487,1739754633391,-500.0,0.00011121,2]
[353314488,1739754633401,-500.0,0.00011121,2]
[353314489,1739754633410,-500.0,0.00011121,2]
[353314490,1739754633419,-500.0,0.00011121,2]
[353314491,1739754633428,-500.0,0.00011121,2]
[353314492,1739754633438,-500.0,0.00011121,2]
[353314493,1739754633450,-500.0,0.00011121,2]
[353314494,1739754633459,-500.0,0.00011121,2]
[353314495,1739754633469,-500.0,0.00011121,2]
[353314496,1739754633479,-500.0,0.00011121,2]
[353314497,1739754633488,-500.0,0.00011121,2]
[353314498,1739754633498,-500.0,0.00011121,2]
[353314499,1739754633507,-500.0,0.00011121,2]
[353314500,1739754633516,-500.0,0.00011121,2]
[353314501,1739754633525,-500.0,0.00011121,2]
[353314502,1739754633535,-500.0,0.00011121,2]
[353314503,1739754633544,-500.0,0.00011121,2]
[353314504,1739754633553,-500.0,0.00011121,2]
[353314505,1739754633563,-500.0,0.00011121,2]
[353314506,1739754633572,-500.0,0.00011121,2]
[353314507,1739754633581,-500.0,0.00011121,2]
[353314508,1739754633590,-500.0,0.00011121,2]
[353314509,1739754633599,-500.0,0.00011121,2]
[353314510,1739754633608,-500.0,0.00011121,2]
[353314511,1739754633618,-500.0,0.00011121,2]
[353314512,1739754633626,-500.0,0.00011121,2]
[353314513,1739754633636,-500.0,0.00011121,2]
[353314514,1739754633645,-500.0,0.00011121,2]
[353314515,1739754633654,-500.0,0.00011121,2]
[353314516,1739754633663,-500.0,0.00011121,2]
[353314517,1739754633671,-500.0,0.00011121,2]
[353314518,1739754633680,-500.0,0.00011121,2]
[353314519,1739754633689,-500.0,0.00011121,2]
[353314520,1739754633699,-500.0,0.00011121,2]
[353314521,1739754633708,-500.0,0.00011121,2]
[353314522,1739754633717,-500.0,0.00011121,2]
[353314523,1739754633726,-504.57956533,0.00011121,2]
[353314524,1739754633735,-500.0,0.00011121,2]
[353314525,1739754633744,-500.0,0.00011121,2]
[353314526,1739754633753,-500.0,0.00011121,2]
[353314527,1739754633761,-520.8397869,0.00011121,2]
[353314528,1739754633771,-500.0,0.00011121,2]
[353314529,1739754633780,-500.0,0.00011121,2]
[353314530,1739754633790,-500.0,0.00011121,2]
[353314531,1739754633800,-500.0,0.00011121,2]
[353314532,1739754633809,-500.0,0.00011121,2]
[353314533,1739754633819,-500.0,0.00011121,2]
[353314534,1739754633827,-500.0,0.00011121,2]
[353314535,1739754633837,-500.0,0.00011121,2]
[353314536,1739754633847,-500.0,0.00011121,2]
[353314537,1739754633856,-500.0,0.00011121,2]
[353314538,1739754633865,-510.71286234,0.00011121,2]
[353314539,1739754633874,-500.0,0.00011121,2]
[353314540,1739754633883,-500.0,0.00011121,2]
[353314541,1739754633892,-500.0,0.00011121,2]
[353314542,1739754633901,-500.0,0.00011121,2]
[353314543,1739754633910,-500.0,0.00011121,2]
[353314544,1739754633919,-500.0,0.00011121,2]
[353314545,1739754633928,-500.0,0.00011121,2]
[353314546,1739754633938,-500.0,0.00011121,2]
[353314547,1739754633947,-500.0,0.00011121,2]
[353314548,1739754633957,-500.0,0.00011121,2]
[353314549,1739754633966,-500.0,0.00011121,2]
[353314550,1739754633976,-500.0,0.00011121,2]
[353314551,1739754633985,-500.0,0.00011121,2]
[353314552,1739754633994,-500.0,0.00011121,2]
[353314553,1739754634003,-500.0,0.00011121,2]
[353314554,1739754634012,-500.0,0.00011121,2]
[353314555,1739754634021,-500.0,0.00011121,2]
[353314556,1739754634031,-500.0,0.00011121,2]
[353314557,1739754634040,-500.0,0.00011121,2]
[353314558,1739754634050,-596.42,0.00011121,2]
[353314559,1739754634059,-500.0,0.00011121,2]
[353314560,1739754634069,-500.0,0.00011121,2]
[353314561,1739754634078,-500.0,0.00011121,2]
[353314562,1739754634088,-699.35,0.00011121,2]
[353314563,1739754634098,-500.0,0.00011121,2]
[353314564,1739754634107,-500.0,0.00011121,2]
[353314565,1739754634116,-500.0,0.00011121,2]
[353314566,1739754634125,-500.0,0.00011121,2]
[353314567,1739754634134,-500.0,0.00011121,2]
[353314568,1739754634143,-500.0,0.00011121,2]
[353314569,1739754634152,-541.68837286,0.00011121,2]
[353314570,1739754634162,-171.5,0.00011121,2]
[353314571,1739754634170,-500.0,0.00011121,2]
[353314572,1739754634179,-293.17064333,0.00011121,2]
[353314573,1739754634189,-500.0,0.00011121,2]
[353314574,1739754634198,-500.0,0.00011121,2]
[353314575,1739754634209,-500.0,0.00011121,2]
[353314576,1739754634218,-1000.0,0.00011121,2]
[353314577,1739754634227,-1000.0,0.00011121,2]
[353314578,1739754634237,-484.0,0.00011121,2]
[353314579,1739754634246,-32213.1879553,0.00011121,2]
[353314580,1739754634684,-511.04440164,0.00011121,2]
[353314581,1739754634773,-537.03634398,0.00011121,2]
[353314582,1739754634801,-32539.17123167,0.00011121,2]
[353314583,1739754634811,-201.13912914,0.00011121,2]
[353314584,1739754634820,-600.0,0.00011154,2]
[353314585,1739754634830,-524.915154,0.00011201,2]
[353314586,1739754634840,-500.0,0.00011201,2]
[353314587,1739754634850,-164.08122,0.00011201,2]
[353314588,1739754634860,-500.0,0.00011201,2]
[353314589,1739754634870,-500.0,0.00011201,2]
[353314590,1739754634879,-781.0,0.00011201,2]
[353314591,1739754634889,-951.22,0.00011201,2]
[353314592,1739754634898,-512.16,0.00011201,2]
[353314593,1739754634908,-500.0,0.00011201,2]
[353314594,1739754634917,-425.245562,0.00011201,2]
[353314595,1739754634927,-580.09,0.00011201,2]
[353314596,1739754634936,-500.0,0.00011201,2]
[353314597,1739754634946,-500.0,0.00011201,2]
[353314598,1739754634957,-639.21,0.00011201,2]
[353314599,1739754634967,-204.26452152,0.00011201,2]
[353314600,1739754634976,-500.0,0.00011201,2]
[353314601,1739754634986,-695.47,0.00011201,2]
[353314602,1739754634996,-500.0,0.00011201,2]
[353314603,1739754635005,-500.0,0.00011201,2]
[353314604,1739754635014,-500.0,0.00011201,2]
[353314605,1739754635024,-609.51,0.00011201,2]
[353314606,1739754635033,-990.13,0.00011201,2]
[353314607,1739754635043,-500.0,0.00011201,2]
[353314608,1739754635052,-500.0,0.00011201,2]
[353314609,1739754635061,-500.0,0.00011201,2]
[353314610,1739754635071,-500.0,0.00011201,2]
[353314611,1739754635081,-500.0,0.00011201,2]
[353314612,1739754635090,-500.0,0.00011201,2]
[353314613,1739754635100,-500.0,0.00011201,2]
[353314614,1739754635109,-500.0,0.00011201,2]
[353314615,1739754635119,-500.0,0.00011201,2]
[353314616,1739754635128,-500.0,0.00011201,2]
[353314617,1739754635137,-500.0,0.00011201,2]
[353314618,1739754635147,-1578.55,0.00011201,2]
[353314619,1739754635156,-1135.12,0.00011201,2]
[353314620,1739754635165,-500.0,0.00011201,2]
[353314621,1739754635175,-500.0,0.00011201,2]
[353314622,1739754635184,-500.0,0.00011201,2]
[353314623,1739754635194,-500.0,0.00011201,2]
[353314624,1739754635203,-594.49,0.00011201,2]
[353314625,1739754635214,-500.0,0.00011201,2]
[353314626,1739754635223,-500.0,0.00011201,2]
[353314627,1739754635232,-500.0,0.00011201,2]
[353314628,1739754635242,-500.0,0.00011201,2]
[353314629,1739754635252,-1004.26,0.00011201,2]
[353314630,1739754635261,-650.83,0.00011201,2]
[353314631,1739754635271,-500.0,0.00011201,2]
[353314632,1739754635281,-500.0,0.00011201,2]
[353314633,1739754635291,-500.0,0.00011201,2]
[353314634,1739754635300,-522.71,0.00011201,2]
[353314635,1739754635310,-500.0,0.00011201,2]
[353314636,1739754635319,-500.0,0.00011201,2]
[353314637,1739754635329,-833.71,0.00011201,2]
[353314638,1739754635338,-500.0,0.00011201,2]
[353314639,1739754635347,-574.05,0.00011201,2]
[353314640,1739754635359,-500.0,0.00011201,2]
[353314641,1739754635368,-500.0,0.00011201,2]
[353314642,1739754635378,-500.0,0.00011201,2]
[353314643,1739754635388,-500.0,0.00011201,2]
[353314644,1739754635398,-500.0,0.00011201,2]
[353314645,1739754635407,-500.0,0.00011201,2]
[353314646,1739754635417,-500.0,0.00011201,2]
[353314647,1739754635428,-500.0,0.00011201,2]
[353314648,1739754635437,-500.0,0.00011201,2]
[353314649,1739754635448,-500.0,0.00011201,2]
[353314650,1739754635458,-512.0,0.00011201,2]
[353314651,1739754635468,-969.17,0.00011201,2]
[353314652,1739754635479,-500.0,0.00011201,2]
[353314653,1739754635489,-500.0,0.00011201,2]
[353314654,1739754635498,-500.0,0.00011201,2]
[353314655,1739754635508,-500.0,0.00011201,2]
[353314656,1739754635518,-506.96,0.00011201,2]
[353314657,1739754635527,-500.0,0.00011201,2]
[353314658,1739754635536,-500.0,0.00011201,2]
[353314659,1739754635546,-500.0,0.00011201,2]
[353314660,1739754635556,-500.0,0.00011201,2]
[353314661,1739754635565,-500.0,0.00011201,2]
[353314662,1739754635574,-500.0,0.00011201,2]
[353314663,1739754635583,-500.0,0.00011201,2]
[353314664,1739754635597,-500.0,0.00011201,2]
[353314665,1739754635607,-500.0,0.00011201,2]
[353314666,1739754635616,-500.0,0.00011201,2]
[353314667,1739754635626,-500.0,0.00011201,2]
[353314668,1739754635635,-564.12,0.00011201,2]
[353314669,1739754635644,-500.0,0.00011201,2]
[353314670,1739754635654,-500.0,0.00011201,2]
[353314671,1739754635664,-500.0,0.00011202,2]
[353314672,1739754635673,-500.0,0.00011202,2]
[353314673,1739754635683,-500.0,0.00011202,2]
[353314674,1739754635692,-500.0,0.00011202,2]
[353314675,1739754635702,-500.0,0.00011202,2]
[353314676,1739754635712,-500.0,0.00011202,2]
[353314677,1739754635722,-305.44,0.00011202,2]
[353314678,1739754635732,-200.98,0.00011202,2]
[353314679,1739754635741,-398.81,0.00011202,2]
[353314680,1739754635752,-500.0,0.00011202,2]
[353314681,1739754635761,-253.67,0.00011202,2]
[353314682,1739754635771,-500.0,0.00011202,2]
[353314683,1739754635781,-346.1,0.00011202,2]
[353314684,1739754635790,-500.0,0.00011202,2]
[353314685,1739754635800,-522.79,0.00011202,2]
[353314686,1739754635810,-500.0,0.00011202,2]
[353314687,1739754635820,-500.0,0.00011202,2]
[353314688,1739754635830,-539.58,0.00011202,2]
[353314689,1739754635841,-500.0,0.00011202,2]
[353314690,1739754635851,-500.0,0.00011202,2]
[353314691,1739754635861,-500.0,0.00011202,2]
[353314692,1739754635871,-500.0,0.00011202,2]
[353314693,1739754635880,-500.0,0.00011202,2]
[353314694,1739754635890,-500.0,0.00011202,2]
[353314695,1739754635900,-500.0,0.00011202,2]
[353314696,1739754635909,-500.0,0.00011202,2]
[353314697,1739754635918,-500.0,0.00011202,2]
[353314698,1739754635927,-500.0,0.00011202,2]
[353314699,1739754635937,-500.0,0.00011202,2]
[353314700,1739754635946,-500.0,0.00011202,2]
[353314701,1739754635957,-500.0,0.00011202,2]
[353314702,1739754635967,-500.0,0.00011202,2]
[353314703,1739754635977,-500.0,0.00011202,2]
[353314704,1739754635987,-500.0,0.00011202,2]
[353314705,1739754635997,-500.0,0.00011202,2]
[353314706,1739754636007,-500.0,0.00011202,2]
[353314707,1739754636017,-500.0,0.00011202,2]
[353314708,1739754636027,-500.0,0.00011202,2]
[353314709,1739754636038,-500.0,0.00011202,2]
[353314710,1739754636049,-500.0,0.00011202,2]
[353314711,1739754636058,-500.0,0.00011202,2]
[353314712,1739754636069,-500.0,0.00011202,2]
[353314713,1739754636079,-500.0,0.00011202,2]
[353314714,1739754636089,-500.0,0.00011202,2]
[353314715,1739754636099,-500.0,0.00011202,2]
[353314716,1739754636109,-500.0,0.00011202,2]
[353314717,1739754636118,-500.0,0.00011202,2]
[353314718,1739754636128,-500.0,0.00011202,2]
[353314719,1739754636137,-500.0,0.00011202,2]
[353314720,1739754636147,-500.0,0.00011202,2]
[353314721,1739754636157,-500.0,0.00011202,2]
[353314722,1739754636166,-500.0,0.00011202,2]
[353314723,1739754636175,-500.0,0.00011202,2]
[353314724,1739754636185,-500.0,0.00011202,2]
[353314725,1739754636194,-500.0,0.00011202,2]
[353314726,1739754636204,-500.0,0.00011202,2]
[353314727,1739754636214,-500.0,0.00011202,2]
[353314728,1739754636223,-500.0,0.00011202,2]
[353314729,1739754636233,-500.0,0.00011202,2]
[353314730,1739754636242,-500.0,0.00011202,2]